bitfinex/quotes_ETHUSD_20240730
["timestamp","ask_amount","ask_price","bid_price","bid_amount"]
[1722326895367,2.98205,3353.4,3352.9,2.98246]
[1722326895621,2.98205,3353.4,3352.6,2.98271]
[1722326895622,3.53214,3353.3,3352.6,2.98271]
[1722326895898,3.53214,3353.3,3352.0,2.357]
[1722326895899,2.98236,3353.1,3352.5,2.98279]
[1722326896044,2.98236,3353.1,3352.6,2.98273]
[1722326896045,0.55,3353.0,3352.6,2.98273]
[1722326897181,3.53241,3353.0,3352.4,2.98286]
[1722326897544,4.428839,3353.0,3352.4,5.96574]
[1722326897773,4.428839,3353.0,3352.4,2.98286]
[1722326898500,4.428839,3353.0,3352.2,3.28206]
[1722326898659,4.428839,3353.0,3352.2,0.299]
[1722326898660,2.98264,3352.8,3352.2,0.299]
[1722326898858,0.55,3352.7,3352.2,3.2821]
[1722326899057,0.55,3352.7,3352.2,2.98304]
[1722326899388,0.55,3352.7,3352.2,2.98306]
[1722326899587,0.55,3352.7,3352.2,2.98305]
[1722326899984,0.55,3352.7,3352.3,2.98302]
[1722326900861,0.55,3352.7,3352.4,2.98287]
[1722326901065,0.55,3352.9,3352.5,2.98277]
[1722326901381,4.075517,3353.1,3352.5,2.98277]
[1722326901692,0.543197,3353.1,3352.5,2.98277]
[1722326901938,0.543197,3353.1,3352.7,2.98261]
[1722326902097,0.543197,3353.1,3352.6,2.98274]
[1722326903102,0.55,3353.0,3352.6,2.98274]
[1722326903300,0.55,3353.0,3352.5,3.28177]
[1722326903301,0.55,3353.0,3352.7,2.98265]
[1722326903506,0.55,3353.2,3352.8,2.98251]
[1722326903830,0.55,3353.2,3352.5,2.98278]
[1722326903831,2.98234,3353.1,3352.5,2.98278]
[1722326903980,0.55,3353.0,3352.5,2.98278]
[1722326905486,0.55,3353.0,3352.5,3.28178]
[1722326905686,2.98231,3353.1,3352.6,2.98268]
[1722326905886,0.55,3353.0,3352.6,2.98268]
[1722326908188,0.55,3353.0,3352.5,5.96556]
[1722326908398,0.55,3353.0,3352.5,2.98278]
[1722326908625,3.5324,3353.0,3352.5,2.98278]
[1722326909114,0.55,3353.0,3352.5,2.98278]
[1722326909341,0.55,3353.1,3352.7,2.98261]
[1722326909538,0.55,3353.2,3352.8,2.98256]
[1722326909850,0.55,3353.2,3352.7,2.98261]
[1722326910368,0.55,3353.2,3352.5,6.26457]
[1722326910369,3.53229,3353.2,3352.5,6.26457]
[1722326910582,2.98231,3353.1,3352.5,2.98276]
[1722326910711,3.53242,3353.0,3352.5,2.98276]
[1722326912417,3.53242,3353.0,3352.5,5.96554]
[1722326912667,3.53242,3353.0,3352.5,2.98276]
[1722326913531,2.98251,3352.9,3352.4,2.98288]
[1722326914059,2.98263,3352.8,3352.2,2.9831]
[1722326914265,2.98263,3352.8,3352.1,2.98319]
[1722326914266,2.98276,3352.6,3352.1,2.98319]
[1722326914637,0.55,3352.5,3352.2,2.98309]
[1722326914836,0.55,3352.5,3352.0,2.98322]
[1722326915157,3.5328,3352.6,3352.0,2.98322]
[1722326915867,3.5328,3352.6,3352.1,35.0]
[1722326916069,3.5328,3352.6,3352.0,2.98324]
[1722326916373,0.58725,3352.5,3351.7,2.98355]
[1722326916667,3.5328,3352.6,3352.0,2.98328]
[1722326916668,0.55,3352.4,3352.0,2.98328]
[1722326916882,0.55,3352.6,3352.1,2.98314]
[1722326917363,3.53277,3352.6,3352.0,2.98328]
[1722326917518,3.53277,3352.6,3352.0,2.98324]
[1722326918162,0.55,3352.6,3351.7,35.0]
[1722326918363,0.55,3352.6,3352.2,2.98304]
[1722326918566,3.53258,3352.8,3352.2,2.98304]
[1722326918867,3.53258,3352.8,3352.0,2.98324]
[1722326919587,2.98276,3352.6,3351.9,2.98329]
[1722326919760,0.55,3352.5,3352.0,2.98328]
[1722326920438,3.53284,3352.5,3352.0,2.98328]
[1722326920841,0.55,3352.5,3352.1,2.98319]
[1722326921040,0.55,3352.6,3352.1,2.98319]
[1722326921386,2.98285,3352.5,3351.9,2.98332]
[1722326921591,2.98285,3352.5,3351.8,5.98341]
[1722326921592,0.55,3352.4,3351.8,5.98341]
[1722326921745,0.55,3352.4,3352.0,2.98322]
[1722326921940,2.98276,3352.6,3352.0,2.98322]
[1722326922187,0.55,3352.5,3352.0,2.98322]
[1722326922782,0.55,3352.5,3352.1,35.0]
[1722326925457,2.98293,3352.4,3352.1,35.0]
[1722326925659,2.98293,3352.4,3351.1,2.98407]
[1722326925660,0.55,3352.3,3351.1,2.98407]
[1722326925864,2.98329,3352.0,3351.3,2.98389]
[1722326926062,3.53341,3351.9,3351.3,2.98386]
[1722326926290,2.98341,3351.9,3351.3,2.98386]
[1722326926618,2.98341,3351.9,3351.2,35.0]
[1722326926619,2.8948,3351.8,3351.2,35.0]
[1722326926912,2.8948,3351.8,3351.4,2.98382]
[1722326927851,2.98356,3351.7,3351.2,37.98394]
[1722326928104,0.55,3351.6,3351.4,2.98377]
[1722326928254,0.55,3351.6,3351.5,5.96746]
[1722326928596,2.2532,3352.1,3351.7,5.96698]
[1722326928763,0.55,3352.0,3351.9,2.98338]
[1722326929160,0.55,3352.3,3351.8,5.96684]
[1722326929353,0.55,3352.3,3351.8,2.98338]
[1722326931391,0.55,3352.3,3351.6,5.96719]
[1722326931392,3.53302,3352.3,3351.6,5.96719]
[1722326931893,3.53302,3352.3,3351.7,2.98354]
[1722326932253,2.98313,3352.2,3351.6,2.98356]
[1722326932453,0.55,3352.1,3351.6,2.98356]
[1722326933674,0.55,3352.1,3351.6,5.96714]
[1722326933871,2.98329,3352.0,3351.3,37.98387]
[1722326934078,2.98347,3351.8,3351.3,2.98386]
[1722326934281,2.9595,3351.9,3351.4,2.98381]
[1722326934465,5.94288,3351.9,3351.4,2.98381]
[1722326936208,5.94288,3351.9,3351.4,2.98376]
[1722326936209,2.9595,3351.9,3351.4,2.98376]
[1722326936500,5.94294,3351.9,3351.4,2.98381]
[1722326936709,0.55,3351.9,3350.9,35.0]
[1722326937005,5.26617,3352.2,3351.5,2.98368]
[1722326937207,2.98329,3352.0,3351.5,2.98368]
[1722326937375,2.98329,3352.0,3351.4,3.28282]
[1722326938091,2.98329,3352.0,3351.4,3.28281]
[1722326938612,2.98329,3352.0,3350.9,40.24176]
[1722326938613,2.98353,3351.8,3351.2,0.299]
[1722326938806,2.98353,3351.8,3351.2,2.98395]
[1722326939108,2.98353,3351.8,3351.2,2.98393]
[1722326939291,3.808314,3352.0,3351.2,2.98393]
[1722326939495,2.98337,3352.0,3351.4,5.96753]
[1722326939810,2.98337,3352.0,3351.4,2.98376]
[1722326940309,2.98337,3352.0,3351.4,5.96752]
[1722326940511,2.98325,3352.1,3351.4,2.98376]
[1722326940702,2.9834,3351.9,3351.4,2.98376]
[1722326940866,6.79147,3352.1,3351.4,2.98376]
[1722326941062,3.80818,3352.1,3351.4,2.98376]
[1722326941816,5.26619,3352.2,3351.6,2.98357]
[1722326942104,2.283,3352.2,3351.7,2.98351]
[1722326942264,5.26612,3352.2,3351.7,2.98351]
[1722326942470,2.283,3352.2,3351.7,2.98349]
[1722326942692,2.283,3352.2,3351.8,2.98346]
[1722326942904,5.26612,3352.2,3351.6,2.98359]
[1722326943376,5.26612,3352.2,3351.6,2.98358]
[1722326943789,2.283,3352.2,3351.7,2.98351]
[1722326944095,2.283,3352.2,3351.6,2.98358]
[1722326944096,2.9832,3352.1,3351.4,2.98374]
[1722326944294,2.98329,3352.0,3351.4,2.98374]
[1722326944502,2.98329,3352.0,3351.4,5.9675]
[1722326944696,2.98329,3352.0,3351.5,2.98373]
[1722326945206,2.98329,3352.0,3351.3,2.98383]
[1722326945404,2.98329,3352.0,3351.5,2.98368]
[1722326945721,2.9832,3352.1,3351.5,2.98365]
[1722326945925,2.283,3352.2,3351.7,2.98354]
[1722326946086,5.26613,3352.2,3351.5,2.98365]
[1722326946406,5.26613,3352.2,3351.6,2.98362]
[1722326946613,2.283,3352.2,3351.8,2.98347]
[1722326946910,2.98298,3352.4,3351.8,5.96687]
[1722326947169,2.98302,3352.3,3351.6,5.96716]
[1722326947463,2.98302,3352.3,3351.7,2.98353]
[1722326947816,3.55157913,3352.3,3351.7,2.98353]
[1722326948014,0.56855913,3352.3,3351.8,2.98341]
[1722326948258,2.98303,3352.3,3351.8,2.98341]
[1722326949668,5.44073,3352.5,3351.9,2.98333]
[1722326950018,5.44073,3352.5,3351.8,2.98341]
[1722326950019,2.98294,3352.4,3351.8,2.98341]
[1722326950459,2.4578,3352.5,3351.8,2.98341]
[1722326950803,2.4578,3352.5,3351.6,0.299]
[1722326951078,2.4578,3352.5,3352.0,2.98325]
[1722326951367,2.4578,3352.5,3352.2,2.98304]
[1722326951540,2.4578,3352.5,3352.0,2.98325]
[1722326951541,2.4578,3352.5,3352.0,2.98322]
[1722326951718,2.4578,3352.5,3352.0,2.98323]
[1722326951914,2.4578,3352.5,3352.0,5.96646]
[1722326952146,2.4578,3352.5,3352.1,2.98314]
[1722326952917,2.98276,3352.6,3352.1,2.98314]
[1722326954320,2.98268,3352.7,3352.2,2.9831]
[1722326954658,2.98276,3352.6,3352.1,2.98314]
[1722326956338,2.98289,3352.5,3351.9,2.98334]
[1722326956864,2.98289,3352.5,3351.9,5.96666]
[1722326957214,2.98289,3352.5,3351.9,2.98332]
[1722326957460,3.806544,3352.6,3351.9,2.98332]
[1722326957461,0.823784,3352.6,3351.9,2.98332]
[1722326957762,3.806554,3352.6,3352.0,2.98321]
[1722326957978,3.806554,3352.6,3352.0,37.98321]
[1722326963324,2.98285,3352.5,3351.9,3.96531]
[1722326964127,3.806554,3352.6,3351.9,2.98331]
[1722326964128,2.98296,3352.4,3351.9,2.98331]
[1722326964332,2.98296,3352.4,3351.9,3.96531]
[1722326965052,2.98312,3352.2,3351.7,2.98351]
[1722326965375,2.98312,3352.2,3351.6,2.98359]
[1722326965673,2.98312,3352.2,3351.7,37.98355]
[1722326967371,0.6079054,3352.5,3351.7,35.0]
[1722326967624,2.98325,3352.1,3351.5,3.4598]
[1722326967976,2.98325,3352.1,3351.5,6.44347]
[1722326968300,2.98313,3352.2,3351.7,0.982]
[1722326968503,2.98313,3352.2,3351.7,3.96554]
[1722326969079,2.98313,3352.2,3351.7,0.982]
[1722326969653,5.37273,3352.3,3351.7,3.9655]
[1722326970317,5.37273,3352.3,3351.8,2.98346]
[1722326970526,2.98303,3352.3,3351.8,2.98346]
[1722326971845,2.98295,3352.4,3351.9,35.0]
[1722326972428,2.98304,3352.3,3351.9,35.0]
[1722326972756,5.96576,3352.5,3351.8,2.98342]
[1722326972950,2.98294,3352.4,3351.9,2.98337]
[1722326973450,2.98294,3352.4,3351.8,35.0]
[1722326973814,2.98302,3352.3,3351.8,35.0]
[1722326974806,2.98302,3352.3,3351.7,3.96547]
[1722326975224,2.98302,3352.3,3351.7,38.96547]
[1722326975619,2.98287,3352.5,3351.7,35.982]
[1722326975620,2.98316,3352.2,3351.7,35.982]
[1722326975863,2.98307,3352.3,3351.8,2.98346]
[1722326976255,2.98307,3352.3,3351.7,35.982]
[1722326976256,2.98307,3352.3,3351.7,38.96555]
[1722326976860,2.98307,3352.3,3351.7,38.9655]
[1722326977478,2.98307,3352.3,3351.8,2.98346]
[1722326978554,2.98307,3352.3,3351.7,0.982]
[1722326978765,2.98312,3352.2,3351.7,0.982]
[1722326978960,2.98312,3352.2,3351.6,40.96718]
[1722326979259,2.98312,3352.2,3351.6,38.96558]
[1722326979989,2.98312,3352.2,3351.6,40.96716]
[1722326980139,2.98297,3352.4,3351.6,38.96558]
[1722326980347,2.98311,3352.2,3351.6,38.96558]
[1722326981060,2.98311,3352.2,3351.7,2.98355]
[1722326983672,2.98311,3352.2,3351.7,37.98355]
[1722326987625,2.9832,3352.1,3351.7,35.0]
[1722326989219,2.98311,3352.3,3351.7,37.98354]
[1722326989412,2.98299,3352.4,3351.7,37.98354]
[1722326989722,2.98316,3352.2,3351.7,37.98354]
[1722326998638,2.98332,3352.0,3351.4,2.98377]
[1722326998834,2.98332,3352.0,3351.5,3.0]
[1722326999323,5.96668,3352.0,3351.5,3.0]
[1722326999529,2.98338,3351.9,3351.4,35.982]
[1722326999938,2.98338,3351.9,3351.4,0.982]
[1722327000348,2.98347,3351.8,3351.2,13.67963]
[1722327000548,2.98347,3351.8,3351.3,35.0]
[1722327000749,2.98338,3351.9,3351.4,3.96576]
[1722327002839,2.98329,3352.0,3351.5,2.98373]
[1722327003658,2.98338,3351.9,3351.4,0.982]
[1722327003998,2.98338,3351.9,3351.4,35.982]
[1722327004399,2.98338,3351.9,3351.4,38.9658]
[1722327005488,2.98338,3351.9,3351.4,38.96578]
[1722327006778,2.98338,3351.9,3351.4,3.96577]
[1722327007012,2.98333,3352.0,3351.5,2.98372]
[1722327010409,5.9667,3352.0,3351.5,2.98372]
[1722327010774,2.98333,3352.0,3351.5,2.98372]
[1722327011530,2.304,3352.1,3351.6,0.982]
[1722327012030,2.304,3352.1,3351.6,3.96564]
[1722327012198,5.28725,3352.1,3351.6,3.96564]
[1722327012393,5.28725,3352.1,3351.6,0.982]
[1722327012704,5.28725,3352.1,3351.6,3.96564]
[1722327012897,5.40582,3352.7,3352.0,0.982]
[1722327013097,2.98281,3352.6,3352.2,0.982]
[1722327014622,2.98284,3352.5,3352.2,0.982]
[1722327014789,2.98294,3352.4,3352.0,0.982]
[1722327015125,5.42326,3352.5,3352.0,2.98329]
[1722327015581,5.42326,3352.5,3351.8,0.982]
[1722327015582,2.98294,3352.4,3351.8,2.98339]
[1722327015784,2.98294,3352.4,3351.8,3.96539]
[1722327015979,2.98294,3352.4,3351.9,5.96666]
[1722327016211,2.98294,3352.4,3351.9,2.98331]
[1722327016396,2.98294,3352.4,3351.9,37.98331]
[1722327016601,5.42325,3352.5,3352.0,2.98328]
[1722327017219,2.98294,3352.4,3351.9,35.0]
[1722327017580,2.98294,3352.4,3351.9,37.98337]
[1722327019446,0.982,3352.8,3352.1,2.98318]
[1722327019447,5.41022,3352.8,3352.1,2.98318]
[1722327019594,5.96528,3352.8,3352.2,2.256]
[1722327019799,3.726265,3352.8,3352.2,2.256]
[1722327020004,2.98277,3352.6,3352.2,2.256]
[1722327021723,2.98284,3352.5,3352.0,3.96524]
[1722327021928,2.98284,3352.5,3351.9,2.2562]
[1722327022279,2.4821,3352.6,3352.0,2.98329]
[1722327022428,2.98291,3352.5,3351.9,2.98336]
[1722327022803,5.96583,3352.5,3351.9,2.98336]
[1722327023239,2.98293,3352.4,3351.9,2.98336]
[1722327023557,2.98293,3352.4,3351.8,38.96538]
[1722327024399,2.98293,3352.4,3351.9,2.98336]
[1722327025102,2.98293,3352.4,3351.9,5.96669]
[1722327025315,2.98293,3352.4,3351.9,2.98333]
[1722327025543,2.98293,3352.4,3351.9,2.98332]
[1722327025748,5.46486,3352.6,3351.9,2.98329]
[1722327025905,2.98294,3352.4,3351.8,38.96539]
[1722327026458,2.98294,3352.4,3351.6,5.53878]
[1722327026459,2.98299,3352.4,3351.6,5.53878]
[1722327026763,3.4641,3352.6,3351.8,2.98347]
[1722327026764,2.98303,3352.3,3351.8,2.98347]
[1722327027256,2.98313,3352.2,3351.7,2.98348]
[1722327028062,3.37638265,3352.5,3351.8,2.98347]
[1722327028260,3.37638265,3352.5,3351.9,2.98337]
[1722327028452,2.98289,3352.5,3351.9,2.98337]
[1722327028657,2.983,3352.4,3351.9,2.98337]
[1722327029157,2.98302,3352.3,3351.8,0.982]
[1722327029332,2.98294,3352.4,3351.9,2.98337]
[1722327029532,2.98294,3352.4,3352.0,0.982]
[1722327030163,2.98303,3352.3,3351.8,0.982]
[1722327030535,2.98303,3352.3,3351.8,38.96547]
[1722327032169,2.98303,3352.3,3351.9,0.03116727]
[1722327032489,2.98293,3352.5,3351.9,3.01454727]
[1722327032688,5.4649,3352.6,3351.9,3.01454727]
[1722327032689,2.98293,3352.4,3351.9,3.01454727]
[1722327033283,2.98284,3352.5,3352.0,2.98328]
[1722327033751,2.98284,3352.5,3352.0,3.01236366]
[1722327034134,2.98284,3352.5,3352.0,3.99436366]
[1722327034651,2.98284,3352.5,3352.0,6.97758366]
[1722327035378,2.4821,3352.6,3352.1,2.98318]
[1722327035530,5.46488,3352.6,3352.1,2.98318]
[1722327035936,2.9829,3352.5,3352.2,0.02908366]
[1722327036141,2.4821,3352.6,3352.0,3.96521]
[1722327036384,5.36124,3352.9,3352.3,2.98297]
[1722327036552,5.36124,3352.9,3352.1,2.4411]
[1722327036553,2.98236,3353.1,3352.6,0.982]
[1722327036750,5.36092,3353.2,3352.7,2.98266]
[1722327036981,2.98222,3353.2,3352.8,0.982]
[1722327037583,2.98222,3353.2,3352.9,0.02891964]
[1722327038538,2.98222,3353.2,3352.6,6.40584]
[1722327038782,2.98222,3353.2,3353.0,0.02885872]
[1722327038983,2.98245,3353.0,3352.5,0.982]
[1722327039146,2.98245,3353.0,3352.4,7.44]
[1722327039345,2.98264,3352.8,3352.4,7.44]
[1722327040701,2.98278,3352.6,3352.4,7.44]
[1722327041191,5.96529,3352.8,3352.4,7.44]
[1722327041344,2.98268,3352.7,3352.4,7.44]
[1722327042556,2.98277,3352.6,3352.4,7.44]
[1722327043441,2.98284,3352.5,3352.4,7.44]
[1722327043646,2.98284,3352.5,3352.2,0.982]
[1722327043956,2.98276,3352.6,3352.2,0.982]
[1722327044154,2.98268,3352.7,3352.2,0.982]
[1722327044774,5.96542,3352.7,3352.2,0.982]
[1722327046712,2.98268,3352.7,3352.2,0.982]
[1722327046920,2.98268,3352.7,3352.2,6.35489]
[1722327048977,2.98268,3352.7,3352.2,41.35489]
[1722327050806,2.98258,3352.8,3352.3,2.98302]
[1722327051609,2.98258,3352.8,3352.4,0.02869476]
[1722327052315,2.98258,3352.8,3352.5,0.02869476]
[1722327052545,2.98258,3352.8,3352.3,2.98301]
[1722327052755,2.98258,3352.8,3352.6,0.02869476]
[1722327052960,2.98258,3352.8,3352.3,2.98301]
[1722327053156,2.98258,3352.8,3352.7,0.02869476]
[1722327053322,2.98245,3353.0,3352.4,2.98287]
[1722327053507,2.98245,3353.0,3352.7,0.02869476]
[1722327053836,2.98245,3353.0,3352.8,0.02869476]
[1722327054039,2.98245,3353.0,3352.5,2.9828]
[1722327054239,2.98245,3353.0,3352.9,0.02869476]
[1722327054551,2.98245,3353.0,3352.5,2.9828]
[1722327054703,2.98245,3353.0,3352.9,0.02869476]
[1722327054909,2.98245,3353.0,3352.5,2.98279]
[1722327055133,2.98245,3353.0,3352.9,0.02869476]
[1722327055452,2.98245,3353.0,3352.5,2.98279]
[1722327055606,2.98245,3353.0,3352.9,0.02869476]
[1722327055810,2.98263,3352.8,3352.4,0.982]
[1722327056201,2.98263,3352.8,3352.5,0.02869476]
[1722327056517,2.98263,3352.8,3352.3,3.96501]
[1722327056712,2.98263,3352.8,3352.6,0.02869476]
[1722327056906,2.98263,3352.8,3352.3,3.96501]
[1722327057407,2.98263,3352.8,3352.4,0.02869476]
[1722327059714,2.9825,3352.9,3352.4,3.01162476]
[1722327064213,2.4573,3353.2,3352.7,3.96466]
[1722327064214,5.43952,3353.2,3352.7,3.96466]
[1722327064447,2.98222,3353.2,3352.8,0.02846049]
[1722327064832,2.98222,3353.2,3352.7,3.96466]
[1722327065147,2.98222,3353.2,3352.8,0.02846049]
[1722327065660,2.98222,3353.2,3352.9,0.02846049]
[1722327065844,0.29818,3353.6,3352.9,2.28496049]
[1722327066151,2.98195,3353.6,3352.9,0.02846049]
[1722327066349,2.98209,3353.4,3352.9,0.02846049]
[1722327067413,5.96422,3353.4,3352.9,0.02846049]
[1722327067658,2.98215,3353.3,3352.9,0.02846049]
[1722327070733,2.98203,3353.5,3352.9,1.01046049]
[1722327071047,5.9638,3353.6,3353.1,0.982]
[1722327071358,5.96382,3353.6,3353.2,0.02834806]
[1722327071559,5.96381,3353.6,3353.2,0.02834806]
[1722327071720,2.98187,3353.6,3353.2,0.02834806]
[1722327072055,5.9638,3353.6,3353.2,0.02834806]
[1722327072270,2.98196,3353.5,3353.2,0.02834806]
[1722327082949,2.9821,3353.4,3353.2,0.02834806]
[1722327083358,2.98215,3353.3,3352.8,2.98252]
[1722327084146,5.96436,3353.3,3352.8,2.98252]
[1722327084350,2.98215,3353.3,3352.7,7.44]
[1722327084550,2.98258,3352.8,3352.7,7.44]
[1722327085396,2.98258,3352.8,3352.3,0.982]
[1722327086955,2.98258,3352.8,3352.3,3.96502]
[1722327088370,5.27532,3353.1,3352.5,3.96479]
[1722327088574,2.98232,3353.1,3352.5,3.96479]
[1722327088775,2.98245,3353.0,3352.5,0.982]
[1722327088957,2.98236,3353.1,3352.5,3.96479]
[1722327089795,2.98219,3353.3,3352.7,3.96458]
[1722327089956,5.23675,3353.4,3352.7,3.96458]
[1722327090159,5.633155,3353.4,3352.7,3.96458]
[1722327090390,2.98236,3353.1,3352.6,2.2955]
[1722327090588,2.98236,3353.1,3352.5,3.96477]
[1722327090902,2.98219,3353.3,3352.7,2.98263]
[1722327091195,2.98223,3353.2,3352.7,2.98263]
[1722327092191,2.98233,3353.1,3352.5,41.94755]
[1722327092883,5.633195,3353.4,3352.7,2.98265]
[1722327093103,2.98228,3353.2,3352.7,2.98265]
[1722327094683,2.98213,3353.3,3352.8,2.98258]
[1722327095335,2.98223,3353.2,3352.6,2.9827]
[1722327095628,2.98221,3353.3,3352.7,2.98266]
[1722327095843,2.98204,3353.4,3352.8,0.982]
[1722327096131,5.38664,3353.7,3353.0,0.982]
[1722327096426,2.98196,3353.5,3353.0,0.982]
[1722327096782,2.98196,3353.5,3353.1,0.02659828]
[1722327096987,2.982,3353.5,3353.1,0.02659828]
[1722327097586,2.98194,3353.6,3353.0,2.98238]
[1722327097793,5.96388,3353.6,3353.0,2.98238]
[1722327098239,2.98196,3353.5,3353.1,0.02659828]
[1722327099798,8.30744,3353.7,3353.1,0.02659828]
[1722327100111,2.98188,3353.6,3353.1,3.00890828]
[1722327100643,2.98196,3353.5,3353.1,0.02659828]
[1722327100813,2.98196,3353.5,3352.9,2.9824]
[1722327101020,2.98196,3353.5,3353.0,3.00898828]
[1722327101204,2.98215,3353.3,3353.0,0.02659828]
[1722327101400,2.98223,3353.2,3352.7,9.7731]
[1722327101631,2.98223,3353.2,3352.8,0.02659828]
[1722327101632,5.40883,3353.2,3352.8,0.02659828]
[1722327101829,5.40883,3353.2,3352.7,7.44]
[1722327102063,5.40883,3353.2,3352.8,0.02659828]
[1722327102270,5.40883,3353.2,3352.7,7.44]
[1722327102530,5.40883,3353.2,3352.9,0.02659828]
[1722327102729,5.40883,3353.2,3352.7,7.44]
[1722327102980,2.98223,3353.2,3353.0,0.02659828]
[1722327103190,2.98223,3353.2,3352.7,10.42265]
[1722327103391,2.98223,3353.2,3353.1,0.02659828]
[1722327103849,2.98223,3353.2,3352.7,10.42265]
[1722327104188,2.98223,3353.2,3352.8,0.02659828]
[1722327104351,2.98241,3353.0,3352.8,0.02659828]
[1722327104552,2.98231,3353.1,3352.7,7.44]
[1722327104751,2.98231,3353.1,3352.9,0.02657485]
[1722327104956,3.3604,3353.4,3352.7,7.44]
[1722327104957,2.9824,3353.0,3352.7,7.44]
[1722327105305,2.98251,3352.9,3352.7,7.44]
[1722327106077,2.9824,3353.1,3352.7,7.44]
[1722327107391,2.9824,3353.0,3352.7,7.44]
[1722327108592,2.98223,3353.2,3352.7,10.42265]
[1722327108967,2.98216,3353.3,3352.8,5.41604]
[1722327109493,2.98206,3353.4,3352.9,2.98247]
[1722327109652,2.98206,3353.4,3352.8,2.4335]
[1722327109856,3.4209,3353.6,3352.8,5.41607]
[1722327109857,2.98213,3353.3,3352.8,5.41607]
[1722327110055,9.38475,3353.6,3352.8,5.41607]
[1722327110269,7.341295,3353.6,3352.8,5.41607]
[1722327110585,7.341295,3353.6,3352.9,2.98245]
[1722327110756,10.323225,3353.6,3352.9,2.98245]
[1722327111103,7.341295,3353.6,3352.9,2.98244]
[1722327111397,7.341295,3353.6,3353.0,2.98239]
[1722327111601,7.341295,3353.6,3352.8,2.4335]
[1722327111602,7.341295,3353.6,3352.8,5.41602]
[1722327111813,7.341295,3353.6,3353.1,3.00888485]
[1722327112121,7.341295,3353.6,3353.2,0.02657485]
[1722327112711,3.377375,3353.6,3353.2,3.00879485]
[1722327113696,3.377375,3353.6,3353.2,0.02657485]
[1722327114003,6.359245,3353.6,3353.2,0.02657485]
[1722327114988,6.359245,3353.6,3353.2,3.00878485]
[1722327114989,3.377375,3353.6,3353.2,3.00878485]
[1722327116012,0.938475,3353.6,3353.2,3.00878485]
[1722327116307,6.4383,3353.8,3353.2,3.00878485]
[1722327116508,3.4566,3353.8,3353.3,2.98209]
[1722327116746,3.4566,3353.8,3353.4,2.98203]
[1722327116892,2.4746,3353.8,3353.4,3.00850335]
[1722327117092,6.40487,3354.0,3353.4,3.00850335]
[1722327117292,3.680948,3353.9,3353.4,3.00850335]
[1722327117935,3.680948,3353.9,3353.4,0.02652335]
[1722327118432,3.680948,3353.9,3353.3,5.35651]
[1722327118620,3.680948,3353.9,3353.5,0.02652335]
[1722327118825,1.0085718,3353.8,3353.3,5.35651]
[1722327118988,3.680948,3353.9,3353.6,0.02652335]
[1722327119188,3.680948,3353.9,3353.3,5.35651]
[1722327119390,3.680948,3353.9,3353.7,0.02652335]
[1722327119588,3.680948,3353.9,3353.3,5.35651]
[1722327119816,2.9816,3353.9,3353.8,0.02652335]
[1722327120325,2.9816,3353.9,3353.4,2.98203]
[1722327120529,2.9816,3353.9,3353.8,0.02652335]
[1722327120724,2.9816,3353.9,3353.4,2.98203]
[1722327120961,2.9816,3353.9,3353.8,0.02652335]
[1722327121160,4.223237,3353.9,3353.4,2.98203]
[1722327121365,4.223237,3353.9,3353.8,0.02652335]
[1722327121511,4.223237,3353.9,3353.4,2.98203]
[1722327121720,4.223237,3353.9,3353.8,0.02652335]
[1722327122064,4.223237,3353.9,3353.4,2.98203]
[1722327122242,2.9816,3353.9,3353.8,0.02652335]
[1722327122446,2.9816,3353.9,3353.4,2.98203]
[1722327122618,2.9816,3353.9,3353.8,0.02652335]
[1722327122816,2.9816,3353.9,3353.4,2.98203]
[1722327123316,2.4413,3354.0,3353.5,3.00846335]
[1722327123525,6.04830034,3354.0,3353.5,3.00846335]
[1722327123866,2.98161,3353.9,3353.5,0.02652335]
[1722327124217,3.06678034,3354.0,3353.5,2.98187]
[1722327124420,3.06678034,3354.0,3353.6,0.02652335]
[1722327125053,0.982,3353.9,3353.6,0.02652335]
[1722327125372,3.68471503,3353.8,3353.3,2.98208]
[1722327125666,0.70302503,3353.8,3353.7,0.02652335]
[1722327125816,0.70302503,3353.8,3353.4,2.98204]
[1722327125817,0.70302503,3353.8,3353.5,2.98195]
[1722327126018,0.62548034,3354.0,3353.7,0.02652335]
[1722327126214,0.62548034,3354.0,3353.5,2.98195]
[1722327126473,0.62548034,3354.0,3353.6,2.98186]
[1722327126757,0.62548034,3354.0,3353.6,5.40838335]
[1722327126928,0.99528503,3353.9,3353.6,2.42652335]
[1722327127262,0.99528503,3353.9,3353.6,0.02652335]
[1722327128320,0.62548034,3354.0,3353.6,0.02652335]
[1722327128515,2.98112,3354.5,3353.9,2.98154]
[1722327128717,2.98116,3354.4,3353.9,2.98154]
[1722327128921,3.982,3354.6,3353.9,2.98154]
[1722327128922,5.98106,3354.6,3354.0,0.02617207]
[1722327129178,3.906966,3354.5,3354.0,0.02617207]
[1722327129462,2.98103,3354.6,3354.0,5.26533207]
[1722327129778,2.98103,3354.6,3354.0,5.26532207]
[1722327130329,2.98103,3354.6,3354.0,5.26531207]
[1722327131464,2.98108,3354.5,3354.0,5.26531207]
[1722327131917,2.98103,3354.6,3354.1,2.98139]
[1722327132364,2.98103,3354.6,3354.2,0.02610182]
[1722327134533,2.98103,3354.6,3354.0,5.2392]